fUSD/lending_fUSD_20250311
["ID","MTS","AMOUNT","RATE_DAILY","PERIOD"]
[355911460,1741713039677,-500.0,8.884e-05,2]
[355911461,1741713039686,-500.0,8.884e-05,2]
[355911462,1741713039696,-500.0,8.884e-05,2]
[355911463,1741713039705,-391.56292168,8.884e-05,2]
[355911464,1741713039714,-500.0,8.884e-05,2]
[355911465,1741713039724,-1891.61,8.884e-05,2]
[355911466,1741713039733,-158.40570725,8.884e-05,2]
[355911467,1741713039743,-500.0,8.884e-05,2]
[355911468,1741713039753,-500.0,8.884e-05,2]
[355911469,1741713039763,-500.0,8.884e-05,2]
[355911470,1741713039772,-876.96,8.884e-05,2]
[355911471,1741713039781,-500.0,8.884e-05,2]
[355911472,1741713039791,-500.0,8.884e-05,2]
[355911473,1741713039800,-500.0,8.884e-05,2]
[355911474,1741713039810,-500.0,8.884e-05,2]
[355911475,1741713039819,-584.35,8.884e-05,2]
[355911476,1741713039830,-500.0,8.884e-05,2]
[355911477,1741713039845,-500.0,8.884e-05,2]
[355911478,1741713039860,-500.0,8.884e-05,2]
[355911479,1741713039878,-500.0,8.884e-05,2]
[355911480,1741713039888,-500.0,8.884e-05,2]
[355911481,1741713039898,-500.0,8.884e-05,2]
[355911482,1741713039907,-1481.16,8.884e-05,2]
[355911483,1741713039918,-500.0,8.884e-05,2]
[355911484,1741713039927,-500.0,8.884e-05,2]
[355911485,1741713039936,-500.0,8.884e-05,2]
[355911486,1741713039946,-500.0,8.884e-05,2]
[355911487,1741713039956,-500.0,8.884e-05,2]
[355911488,1741713039966,-500.0,8.884e-05,2]
[355911489,1741713039976,-573.46,8.884e-05,2]
[355911490,1741713039987,-750.17,8.884e-05,2]
[355911491,1741713039997,-500.0,8.884e-05,2]
[355911492,1741713040010,-500.0,8.884e-05,2]
[355911493,1741713040019,-500.0,8.884e-05,2]
[355911494,1741713040029,-1845.0,8.884e-05,2]
[355911495,1741713040039,-500.0,8.884e-05,2]
[355911497,1741713040053,-500.0,8.884e-05,2]
[355911498,1741713040070,-500.0,8.884e-05,2]
[355911499,1741713040080,-500.0,8.884e-05,2]
[355911500,1741713040090,-500.0,8.884e-05,2]
[355911501,1741713040101,-523.49,8.884e-05,2]
[355911502,1741713040111,-596.98,8.884e-05,2]
[355911503,1741713040121,-500.0,8.884e-05,2]
[355911504,1741713040130,-500.0,8.884e-05,2]
[355911505,1741713040140,-592.14,8.884e-05,2]
[355911506,1741713040149,-500.0,8.884e-05,2]
[355911507,1741713040159,-500.0,8.884e-05,2]
[355911508,1741713040169,-500.0,8.884e-05,2]
[355911509,1741713040179,-500.0,8.884e-05,2]
[355911510,1741713040189,-1800.74,8.884e-05,2]
[355911511,1741713040199,-586.31,8.884e-05,2]
[355911512,1741713040209,-500.0,8.884e-05,2]
[355911513,1741713040219,-500.0,8.884e-05,2]
[355911514,1741713040229,-500.0,8.884e-05,2]
[355911515,1741713040239,-500.0,8.884e-05,2]
[355911516,1741713040248,-500.0,8.884e-05,2]
[355911517,1741713040262,-500.0,8.884e-05,2]
[355911518,1741713040272,-1791.79,8.884e-05,2]
[355911519,1741713040282,-1081.37,8.884e-05,2]
[355911520,1741713040292,-500.0,8.884e-05,2]
[355911522,1741713040302,-500.0,8.884e-05,2]
[355911523,1741713040311,-500.0,8.884e-05,2]
[355911524,1741713040321,-467.21940366,8.884e-05,2]
[355911525,1741713040331,-500.0,8.884e-05,2]
[355911526,1741713040341,-500.0,8.884e-05,2]
[355911527,1741713040351,-500.0,8.884e-05,2]
[355911528,1741713040360,-500.0,8.884e-05,2]
[355911529,1741713040370,-500.0,8.884e-05,2]
[355911530,1741713040380,-500.0,8.884e-05,2]
[355911531,1741713040390,-500.0,8.884e-05,2]
[355911532,1741713040399,-500.0,8.884e-05,2]
[355911533,1741713040408,-513.32,8.884e-05,2]
[355911534,1741713040417,-640.03,8.884e-05,2]
[355911535,1741713040427,-500.0,8.884e-05,2]
[355911536,1741713040436,-1764.78,8.884e-05,2]
[355911537,1741713040445,-500.0,8.884e-05,2]
[355911538,1741713040455,-933.39,8.884e-05,2]
[355911539,1741713040465,-500.0,8.884e-05,2]
[355911540,1741713040474,-500.0,8.884e-05,2]
[355911541,1741713040485,-636.39093422,8.884e-05,2]
[355911542,1741713040494,-547.61,8.884e-05,2]
[355911543,1741713040507,-500.0,8.884e-05,2]
[355911544,1741713040516,-500.0,8.884e-05,2]
[355911545,1741713040527,-500.0,8.884e-05,2]
[355911546,1741713040538,-500.0,8.884e-05,2]
[355911547,1741713040548,-500.0,8.884e-05,2]
[355911548,1741713040557,-1613.02,8.884e-05,2]
[355911549,1741713040569,-271.66191914,8.884e-05,2]
[355911550,1741713040583,-392.99278319,8.884e-05,2]
[355911551,1741713040593,-500.0,8.884e-05,2]
[355911552,1741713040603,-500.0,8.884e-05,2]
[355911553,1741713040613,-500.0,8.884e-05,2]
[355911554,1741713040623,-1292.15,8.884e-05,2]
[355911555,1741713040632,-500.0,8.884e-05,2]
[355911556,1741713040642,-930.23,8.884e-05,2]
[355911557,1741713040653,-500.0,8.884e-05,2]
[355911558,1741713040664,-500.0,8.884e-05,2]
[355911559,1741713040675,-515.34824827,8.884e-05,2]
[355911560,1741713040685,-2192.09,8.884e-05,2]
[355911561,1741713040696,-517.94,8.884e-05,2]
[355911562,1741713040707,-500.0,8.884e-05,2]
[355911563,1741713040719,-500.0,8.884e-05,2]
[355911564,1741713040730,-500.0,8.884e-05,2]
[355911565,1741713040742,-500.0,8.884e-05,2]
[355911566,1741713040756,-2315.21,8.884e-05,2]
[355911567,1741713040767,-500.0,8.884e-05,2]
[355911568,1741713040778,-500.0,8.884e-05,2]
[355911569,1741713040790,-500.0,8.884e-05,2]
[355911570,1741713040801,-500.0,8.884e-05,2]
[355911571,1741713040811,-473.56347873,8.884e-05,2]
[355911572,1741713040822,-500.0,8.884e-05,2]
[355911573,1741713040832,-500.0,8.884e-05,2]
[355911574,1741713040842,-500.0,8.884e-05,2]
[355911575,1741713040854,-500.0,8.884e-05,2]
[355911576,1741713040867,-500.0,8.884e-05,2]
[355911577,1741713040878,-500.0,8.884e-05,2]
[355911578,1741713040888,-500.0,8.884e-05,2]
[355911579,1741713040900,-500.0,8.884e-05,2]
[355911580,1741713040911,-500.0,8.884e-05,2]
[355911581,1741713040921,-500.0,8.884e-05,2]
[355911582,1741713040931,-500.0,8.884e-05,2]
[355911583,1741713040942,-500.0,8.884e-05,2]
[355911584,1741713040952,-758.26,8.884e-05,2]
[355911585,1741713040963,-500.0,8.884e-05,2]
[355911586,1741713040973,-500.0,8.884e-05,2]
[355911587,1741713040984,-786.11,8.884e-05,2]
[355911588,1741713040994,-500.0,8.884e-05,2]
[355911589,1741713041009,-500.0,8.884e-05,2]
[355911590,1741713041020,-500.0,8.884e-05,2]
[355911591,1741713041031,-500.0,8.884e-05,2]
[355911592,1741713041042,-500.0,8.884e-05,2]
[355911593,1741713041052,-689.32,8.884e-05,2]
[355911595,1741713041063,-300.0,8.884e-05,2]
[355911596,1741713041073,-500.0,8.884e-05,2]
[355911597,1741713041087,-500.0,8.884e-05,2]
[355911598,1741713041098,-500.0,8.884e-05,2]
[355911599,1741713041108,-500.0,8.884e-05,2]
[355911600,1741713041119,-2259.12,8.884e-05,2]
[355911601,1741713041129,-502.05,8.884e-05,2]
[355911602,1741713041139,-500.0,8.884e-05,2]
[355911603,1741713041149,-1047.02,8.884e-05,2]
[355911604,1741713041159,-500.0,8.884e-05,2]
[355911605,1741713041168,-500.0,8.884e-05,2]
[355911606,1741713041178,-1316.83,8.884e-05,2]
[355911608,1741713041188,-500.0,8.884e-05,2]
[355911609,1741713041198,-500.0,8.884e-05,2]
[355911610,1741713041208,-500.0,8.884e-05,2]
[355911611,1741713041218,-500.0,8.884e-05,2]
[355911612,1741713041228,-500.0,8.884e-05,2]
[355911613,1741713041238,-500.0,8.884e-05,2]
[355911614,1741713041247,-769.91,8.884e-05,2]
[355911615,1741713041260,-500.0,8.884e-05,2]
[355911616,1741713041270,-1752.11,8.884e-05,14]
[355911617,1741713041280,-922.81,8.884e-05,2]
[355911618,1741713041290,-500.0,8.884e-05,2]
[355911619,1741713041299,-500.0,8.884e-05,2]
[355911620,1741713041309,-534.39,8.884e-05,2]
[355911621,1741713041319,-1567.15,8.884e-05,2]
[355911622,1741713041329,-748.54,8.884e-05,2]
[355911623,1741713041339,-500.0,8.884e-05,2]
[355911624,1741713041348,-500.0,8.884e-05,2]
[355911625,1741713041358,-500.0,8.884e-05,2]
[355911626,1741713041367,-330.20187962,8.884e-05,2]
[355911627,1741713041377,-500.0,8.884e-05,2]
[355911628,1741713041387,-661.69,8.884e-05,2]
[355911629,1741713041396,-500.0,8.884e-05,2]
[355911630,1741713041405,-1438.03,8.884e-05,2]
[355911631,1741713041415,-500.0,8.884e-05,2]
[355911632,1741713041424,-500.0,8.884e-05,2]
[355911633,1741713041434,-176.53266634,8.884e-05,2]
[355911634,1741713041443,-500.0,8.884e-05,2]
[355911635,1741713041453,-500.0,8.884e-05,2]
[355911636,1741713041463,-500.0,8.884e-05,2]
[355911637,1741713041472,-861.88,8.884e-05,2]
[355911638,1741713041481,-972.52,8.884e-05,2]
[355911639,1741713041491,-884.68,8.884e-05,2]
[355911640,1741713041509,-692.62,8.884e-05,2]
[355911641,1741713041524,-500.0,8.884e-05,2]
[355911642,1741713041540,-500.0,8.884e-05,2]
[355911643,1741713041550,-1161.41,8.884e-05,2]
[355911644,1741713041560,-500.0,8.884e-05,2]
[355911645,1741713041569,-500.0,8.884e-05,2]
[355911646,1741713041579,-500.0,8.884e-05,2]
[355911647,1741713041589,-500.0,8.884e-05,2]
[355911648,1741713041605,-500.0,8.884e-05,2]
[355911649,1741713041615,-1297.75,8.884e-05,2]
[355911650,1741713041625,-799.23,8.884e-05,2]
[355911651,1741713041634,-500.0,8.884e-05,2]
[355911652,1741713041644,-682.42,8.884e-05,2]
[355911653,1741713041654,-500.0,8.884e-05,2]
[355911654,1741713041664,-500.0,8.884e-05,2]
[355911655,1741713041674,-500.0,8.884e-05,2]
[355911656,1741713041684,-500.0,8.884e-05,2]
[355911657,1741713041694,-463.44915924,8.884e-05,2]
[355911658,1741713041704,-500.0,8.884e-05,2]
[355911659,1741713041713,-290.61757042,8.884e-05,2]
[355911660,1741713041723,-542.0,8.884e-05,2]
[355911661,1741713041733,-1088.88,8.884e-05,2]
[355911662,1741713041743,-500.0,8.884e-05,2]
[355911663,1741713041753,-500.0,8.884e-05,2]
[355911664,1741713041764,-500.0,8.884e-05,2]
[355911665,1741713041774,-500.0,8.884e-05,2]
[355911666,1741713041784,-502.25232797,8.884e-05,2]
[355911667,1741713041794,-1844.12,8.884e-05,2]
[355911668,1741713041804,-500.0,8.884e-05,2]
[355911669,1741713041814,-500.0,8.884e-05,2]
[355911670,1741713041824,-500.0,8.884e-05,2]
[355911671,1741713041834,-634.0,8.884e-05,2]
[355911672,1741713041845,-500.0,8.884e-05,2]
[355911673,1741713041856,-1186.23,8.884e-05,2]
[355911674,1741713041868,-500.0,8.884e-05,2]
[355911675,1741713041878,-500.0,8.884e-05,2]
[355911676,1741713041888,-500.0,8.884e-05,2]
[355911677,1741713041899,-500.0,8.884e-05,2]
[355911678,1741713041908,-500.0,8.884e-05,2]
[355911679,1741713041924,-1261.58,8.884e-05,2]
[355911680,1741713041934,-500.0,8.884e-05,2]
[355911681,1741713041944,-543.18,8.884e-05,2]
[355911682,1741713041954,-500.0,8.884e-05,2]
[355911683,1741713041964,-500.0,8.884e-05,2]
[355911684,1741713041973,-500.0,8.884e-05,2]
[355911685,1741713041983,-500.0,8.884e-05,2]
[355911686,1741713041993,-521.42,8.884e-05,2]
[355911687,1741713042005,-532.5,8.884e-05,2]
[355911688,1741713042014,-500.0,8.884e-05,2]
[355911689,1741713042024,-500.0,8.884e-05,2]
[355911690,1741713042034,-2021.79,8.884e-05,2]
[355911691,1741713042044,-500.0,8.884e-05,2]
[355911692,1741713042055,-610.2106227,8.884e-05,2]
[355911693,1741713042065,-641.25,8.884e-05,2]
[355911694,1741713042075,-726.82,8.884e-05,2]
[355911695,1741713042085,-500.0,8.884e-05,2]
[355911696,1741713042095,-497.187658,8.884e-05,2]
[355911697,1741713042104,-500.0,8.884e-05,2]
[355911698,1741713042113,-500.0,8.884e-05,2]
[355911699,1741713042122,-500.0,8.884e-05,2]
[355911700,1741713042133,-500.0,8.884e-05,2]
[355911701,1741713042143,-500.0,8.884e-05,2]
[355911702,1741713042152,-500.0,8.884e-05,2]
[355911703,1741713042163,-500.0,8.884e-05,2]
[355911704,1741713042173,-500.0,8.884e-05,2]
[355911705,1741713042184,-500.0,8.884e-05,2]
[355911706,1741713042194,-500.0,8.884e-05,2]
[355911707,1741713042203,-1947.1,8.884e-05,2]
[355911708,1741713042214,-500.0,8.884e-05,2]
[355911709,1741713042224,-1082.55,8.884e-05,2]
[355911710,1741713042424,-1117.78,8.884e-05,2]
[355911711,1741713042434,-500.0,8.884e-05,2]
[355911712,1741713042444,-500.0,8.884e-05,2]
[355911713,1741713042454,-610.54,8.884e-05,2]
[355911714,1741713042464,-500.0,8.884e-05,2]
[355911715,1741713042474,-500.0,8.884e-05,2]
[355911716,1741713042483,-2234.65,8.884e-05,2]
[355911717,1741713042493,-741.15,8.884e-05,2]
[355911718,1741713042505,-500.0,8.884e-05,2]
[355911719,1741713042515,-500.0,8.884e-05,2]
[355911720,1741713042525,-500.0,8.884e-05,2]
[355911721,1741713042541,-500.0,8.884e-05,2]
[355911722,1741713042551,-1280.41,8.884e-05,2]
[355911723,1741713042563,-500.0,8.884e-05,2]
[355911724,1741713042573,-500.0,8.884e-05,2]
[355911725,1741713042583,-1891.18,8.884e-05,2]
[355911726,1741713042593,-1462.46,8.884e-05,2]
[355911727,1741713042602,-521.01,8.884e-05,2]
[355911728,1741713042612,-1444.35,8.884e-05,2]
[355911729,1741713042622,-689.1,8.884e-05,2]
[355911730,1741713042631,-500.0,8.884e-05,2]
[355911731,1741713042641,-500.0,8.884e-05,2]
[355911732,1741713042650,-500.0,8.884e-05,2]
[355911733,1741713042661,-500.0,8.884e-05,2]
[355911734,1741713042671,-878.69,8.884e-05,2]
[355911735,1741713042681,-704.71,8.884e-05,2]
[355911736,1741713042691,-502.43324784,8.884e-05,2]
[355911737,1741713042701,-500.0,8.884e-05,2]
[355911738,1741713042712,-1321.91,8.884e-05,2]
[355911739,1741713042722,-500.0,8.884e-05,2]
[355911740,1741713042732,-500.0,8.884e-05,2]
[355911741,1741713042742,-600.02,8.884e-05,2]
[355911742,1741713042754,-500.0,8.884e-05,2]
[355911743,1741713042764,-500.0,8.884e-05,2]
[355911744,1741713042773,-500.0,8.884e-05,2]
[355911745,1741713042783,-616.98,8.884e-05,2]
[355911746,1741713042793,-500.0,8.884e-05,2]
[355911747,1741713042803,-500.0,8.884e-05,2]
[355911748,1741713042813,-500.0,8.884e-05,2]
[355911749,1741713042823,-739.67,8.884e-05,2]
[355911750,1741713042833,-500.0,8.884e-05,2]
[355911751,1741713042843,-603.37,8.884e-05,2]
[355911752,1741713042855,-775.34,8.884e-05,2]
[355911753,1741713042867,-718.56,8.884e-05,2]
[355911754,1741713042878,-500.0,8.884e-05,2]
[355911755,1741713042888,-500.0,8.884e-05,2]
[355911756,1741713042899,-2333.83,8.884e-05,2]
[355911757,1741713042910,-500.0,8.884e-05,2]
[355911758,1741713042920,-500.0,8.884e-05,2]
[355911759,1741713042929,-500.0,8.884e-05,2]
[355911760,1741713042940,-500.0,8.884e-05,2]
[355911761,1741713042952,-500.0,8.884e-05,2]
[355911762,1741713042963,-991.66,8.884e-05,2]
[355911763,1741713042974,-500.0,8.884e-05,2]
[355911764,1741713042984,-500.0,8.884e-05,2]
[355911765,1741713042996,-500.0,8.884e-05,2]
[355911766,1741713043009,-500.0,8.884e-05,2]
[355911767,1741713043018,-500.0,8.884e-05,2]
[355911768,1741713043028,-500.0,8.884e-05,2]
[355911769,1741713043037,-500.0,8.884e-05,2]
[355911770,1741713043046,-650.28,8.884e-05,2]
[355911771,1741713043056,-572.13,8.884e-05,2]
[355911772,1741713043065,-555.06,8.884e-05,2]
[355911773,1741713043075,-527.94163411,8.884e-05,2]
[355911774,1741713043084,-500.0,8.884e-05,2]
[355911775,1741713043093,-500.0,8.884e-05,2]
[355911776,1741713043103,-1454.5,8.884e-05,2]
[355911777,1741713043113,-500.0,8.884e-05,2]
[355911779,1741713043122,-500.0,8.884e-05,2]
[355911781,1741713043131,-500.0,8.884e-05,2]
[355911783,1741713043141,-2303.98,8.884e-05,2]
[355911784,1741713043150,-500.0,8.884e-05,2]
[355911786,1741713043159,-500.0,8.884e-05,2]
[355911788,1741713043169,-797.4,8.884e-05,2]
[355911790,1741713043178,-500.0,8.884e-05,2]
[355911792,1741713043188,-500.0,8.884e-05,2]
[355911794,1741713043197,-500.0,8.884e-05,2]
[355911796,1741713043207,-500.0,8.884e-05,2]
[355911798,1741713043216,-503.53,8.884e-05,2]
[355911800,1741713043229,-1391.02,8.884e-05,2]
[355911803,1741713043238,-500.0,8.884e-05,2]
[355911806,1741713043247,-636.25,8.884e-05,2]
[355911808,1741713043259,-500.0,8.884e-05,2]
[355911810,1741713043268,-502.14220855,8.884e-05,2]
[355911812,1741713043277,-500.0,8.884e-05,2]
[355911815,1741713043286,-500.0,8.884e-05,2]
[355911817,1741713043295,-500.0,8.884e-05,2]
[355911819,1741713043305,-500.0,8.884e-05,2]
[355911821,1741713043317,-2930.64,8.884e-05,2]
[355911823,1741713043327,-500.0,8.884e-05,2]
[355911825,1741713043336,-1000.0,8.884e-05,2]
[355911827,1741713043346,-151.0,8.884e-05,2]
[355911829,1741713043355,-568.76906269,8.884e-05,2]
[355911831,1741713043366,-535.47,8.884e-05,2]
[355911833,1741713043375,-500.0,8.884e-05,2]
[355911834,1741713043386,-500.0,8.884e-05,2]
[355911836,1741713043395,-151.0,8.884e-05,2]
[355911838,1741713043404,-509.20946345,8.884e-05,2]
[355911840,1741713043413,-2020.87,8.884e-05,2]
[355911842,1741713043423,-436.23219307,8.884e-05,2]
[355911844,1741713043432,-500.0,8.884e-05,2]
[355911845,1741713043441,-500.0,8.884e-05,2]
[355911846,1741713043451,-758.31,8.884e-05,2]
[355911847,1741713043460,-500.0,8.884e-05,2]
[355911848,1741713043469,-1980.86,8.884e-05,2]
[355911849,1741713043478,-500.0,8.884e-05,2]
[355911850,1741713043488,-500.0,8.884e-05,2]
[355911851,1741713043497,-1487.84,8.884e-05,2]
[355911852,1741713043508,-500.0,8.884e-05,2]
[355911853,1741713043518,-969.32,8.884e-05,2]
[355911854,1741713043527,-2349.17,8.884e-05,2]
[355911855,1741713043537,-598.73,8.884e-05,2]
[355911856,1741713043548,-500.0,8.884e-05,2]
[355911857,1741713043557,-500.0,8.884e-05,2]
[355911858,1741713043567,-620.86,8.884e-05,2]
[355911859,1741713043576,-258.14573282,8.884e-05,2]
[355911860,1741713043586,-500.0,8.884e-05,2]
[355911861,1741713043596,-2127.71,8.884e-05,2]
[355911862,1741713043606,-541.7486483,8.884e-05,2]
[355911863,1741713043615,-516.0,8.884e-05,2]
[355911864,1741713043625,-1670.05,8.884e-05,2]
[355911865,1741713043634,-500.0,8.884e-05,2]
[355911866,1741713043644,-630.38,8.884e-05,2]
[355911867,1741713043653,-301.430973,8.884e-05,2]
[355911868,1741713043663,-1100.8,8.884e-05,2]
[355911869,1741713043673,-301.430973,8.884e-05,2]
[355911870,1741713043683,-500.0,8.884e-05,2]
[355911871,1741713043693,-500.0,8.884e-05,2]
[355911872,1741713043702,-1914.96,8.884e-05,2]
[355911873,1741713043712,-500.0,8.884e-05,2]
[355911874,1741713043722,-500.0,8.884e-05,2]
[355911875,1741713043732,-500.0,8.884e-05,2]
[355911876,1741713043742,-500.0,8.884e-05,2]
[355911877,1741713043754,-2030.22,8.885e-05,2]
[355911878,1741713043764,-500.0,8.885e-05,2]
[355911879,1741713043774,-500.0,8.885e-05,2]
[355911880,1741713043783,-500.0,8.885e-05,2]
[355911881,1741713043793,-500.0,8.885e-05,2]
[355911882,1741713043802,-500.0,8.885e-05,2]
[355911883,1741713043811,-500.0,8.885e-05,2]
[355911885,1741713043821,-555.93,8.885e-05,2]
[355911886,1741713043830,-500.0,8.885e-05,2]
[355911887,1741713043839,-2464.2,8.885e-05,2]
[355911888,1741713043848,-326.70257076,8.885e-05,2]
[355911889,1741713043861,-513.02080464,8.885e-05,2]
[355911890,1741713043870,-500.0,8.885e-05,2]
[355911891,1741713043880,-500.0,8.885e-05,2]
[355911892,1741713043889,-500.0,8.885e-05,2]
[355911893,1741713043898,-500.0,8.885e-05,2]
[355911895,1741713043909,-500.0,8.885e-05,2]
[355911897,1741713043919,-500.0,8.885e-05,7]
[355911899,1741713043929,-503.58,8.885e-05,2]
[355911901,1741713043940,-500.0,8.885e-05,2]
[355911902,1741713043950,-500.0,8.885e-05,2]
[355911903,1741713043959,-1417.91,8.885e-05,2]
[355911904,1741713043968,-500.0,8.885e-05,2]
[355911905,1741713043977,-1343.01,8.885e-05,2]
[355911906,1741713043986,-500.0,8.885e-05,2]
[355911907,1741713043995,-500.0,8.885e-05,2]
[355911908,1741713044005,-1605.68,8.885e-05,2]
[355911909,1741713044015,-500.0,8.885e-05,2]
[355911910,1741713044024,-392.44474329,8.885e-05,2]
[355911911,1741713044033,-517.76089454,8.885e-05,2]
[355911912,1741713044042,-599.56197096,8.885e-05,2]
[355911913,1741713044051,-500.0,8.885e-05,2]
[355911914,1741713044059,-500.0,8.885e-05,2]
[355911915,1741713044068,-500.0,8.885e-05,2]
[355911916,1741713044077,-995.08,8.885e-05,2]
[355911917,1741713044086,-510.48712804,8.885e-05,2]
[355911918,1741713044095,-500.0,8.885e-05,2]
[355911919,1741713044105,-1922.33,8.885e-05,2]
[355911920,1741713044114,-500.0,8.885e-05,2]
[355911921,1741713044123,-545.09,8.885e-05,2]
[355911922,1741713044133,-916.87,8.885e-05,2]
[355911923,1741713044142,-500.0,8.885e-05,2]
[355911924,1741713044152,-500.0,8.885e-05,2]
[355911925,1741713044161,-500.0,8.885e-05,2]
[355911926,1741713044170,-1379.06,8.885e-05,2]
[355911927,1741713044179,-500.0,8.885e-05,2]
[355911928,1741713044188,-500.0,8.885e-05,2]
[355911929,1741713044198,-500.0,8.885e-05,2]
[355911930,1741713044209,-1314.88,8.885e-05,2]
[355911931,1741713044219,-500.0,8.885e-05,2]
[355911932,1741713044228,-1313.18,8.885e-05,2]
[355911933,1741713044238,-420.28958138,8.885e-05,2]
[355911934,1741713044247,-500.0,8.885e-05,2]
[355911935,1741713044257,-906.19,8.885e-05,2]
[355911936,1741713044266,-1292.08,8.885e-05,2]
[355911937,1741713044275,-1212.0,8.885e-05,2]
[355911938,1741713044284,-500.0,8.885e-05,2]
[355911939,1741713044293,-2234.59,8.885e-05,2]
[355911940,1741713044302,-500.0,8.885e-05,2]
[355911941,1741713044311,-500.0,8.885e-05,2]
[355911942,1741713044320,-500.0,8.885e-05,2]
[355911943,1741713044329,-500.0,8.885e-05,2]
[355911944,1741713044338,-1070.33,8.885e-05,2]
[355911945,1741713044347,-500.0,8.885e-05,2]
[355911946,1741713044356,-500.0,8.885e-05,2]
[355911947,1741713044365,-551.59,8.885e-05,2]
[355911948,1741713044374,-704.61,8.885e-05,2]
[355911949,1741713044384,-500.0,8.885e-05,2]
[355911950,1741713044393,-1711.87,8.885e-05,2]
[355911951,1741713044402,-500.0,8.885e-05,2]
[355911952,1741713044411,-1120.24,8.885e-05,2]
[355911953,1741713044421,-917.65,8.885e-05,2]
[355911954,1741713044430,-500.0,8.885e-05,2]
[355911955,1741713044439,-500.0,8.885e-05,2]
[355911956,1741713044448,-1243.5,8.885e-05,2]
[355911957,1741713044457,-500.0,8.885e-05,2]
[355911958,1741713044466,-500.0,8.885e-05,2]
[355911959,1741713044475,-500.0,8.885e-05,2]
[355911960,1741713044484,-1971.05,8.885e-05,2]
[355911961,1741713044493,-2058.7,8.885e-05,2]
[355911962,1741713044504,-809.28,8.885e-05,2]
[355911963,1741713044513,-565.41,8.885e-05,2]
[355911964,1741713044523,-1357.99,8.885e-05,2]
[355911965,1741713044531,-500.0,8.885e-05,2]
[355911966,1741713044541,-2338.64,8.885e-05,2]
[355911967,1741713044551,-500.0,8.885e-05,2]
[355911968,1741713044560,-500.0,8.885e-05,2]
[355911969,1741713044569,-500.0,8.885e-05,2]
[355911970,1741713044579,-580.52,8.885e-05,2]
[355911971,1741713044588,-500.0,8.885e-05,2]
[355911972,1741713044597,-500.0,8.885e-05,2]
[355911973,1741713044606,-500.0,8.885e-05,2]
[355911974,1741713044616,-966.83,8.885e-05,2]
[355911975,1741713044626,-500.0,8.885e-05,2]
[355911976,1741713044635,-1228.41,8.885e-05,2]
[355911977,1741713044645,-534.33,8.885e-05,2]
[355911978,1741713044654,-1631.44,8.885e-05,2]
[355911979,1741713044664,-1884.34,8.885e-05,2]
[355911980,1741713044674,-564.69,8.885e-05,2]
[355911981,1741713044684,-808.24,8.885e-05,2]
[355911982,1741713044693,-500.0,8.885e-05,2]
[355911983,1741713044703,-500.0,8.885e-05,2]
[355911984,1741713044712,-500.0,8.885e-05,2]
[355911985,1741713044721,-500.0,8.885e-05,2]
[355911986,1741713044731,-527.35653279,8.885e-05,2]
[355911987,1741713044743,-2093.8,8.885e-05,2]
[355911988,1741713044754,-500.0,8.885e-05,2]
[355911989,1741713044763,-500.0,8.885e-05,2]
[355911990,1741713044773,-545.28,8.885e-05,2]
[355911991,1741713044783,-500.0,8.885e-05,2]
[355911992,1741713044794,-804.39,8.885e-05,2]
[355911993,1741713044807,-500.0,8.885e-05,2]
[355911994,1741713044819,-500.0,8.885e-05,2]
[355911995,1741713044833,-500.0,8.885e-05,2]
[355911996,1741713044843,-520.29070174,8.885e-05,2]
[355911997,1741713044855,-500.0,8.885e-05,2]
[355911998,1741713044865,-500.0,8.885e-05,2]
[355911999,1741713044880,-500.0,8.885e-05,2]
[355912000,1741713044889,-500.0,8.885e-05,2]
[355912001,1741713044899,-896.36,8.885e-05,2]
[355912002,1741713044909,-500.0,8.885e-05,2]